[Event "Titled Tuesday Blitz July 18 Early 2023"]
[White "Van Foreest, Jorden"]
[Black "Droin, Augustin"]
[WhiteFideId "1039784"]
[BlackFideId "45105987"]
[WhiteElo "2965"]
[BlackElo "2506"]
[Result "1-0"]
[Round "1"]
[TimeControl "180+2"]
[Date "2023.07.18"]
[WhiteClock "0:01:29"]
[BlackClock "0:00:54"]
[Board "18"]

1. d4 {[%clk 0:03:00]}  Nf6 {[%clk 0:02:52]} 2. Nf3 {[%clk 0:03:01]}  e6 {[%clk 0:02:51]} 3. Bf4 {[%clk 0:03:01]}  d5 {[%clk 0:02:51]} 4. e3 {[%clk 0:03:01]}  Bd6 {[%clk 0:02:51]} 5. Bd3 {[%clk 0:02:56]}  O-O {[%clk 0:02:47]} 6. h4 {[%clk 0:02:55]}  Bxf4 {[%clk 0:02:44]} 7. exf4 {[%clk 0:02:55]}  Qd6 {[%clk 0:02:45]} 8. Ne5 {[%clk 0:02:51]}  Qb4+ {[%clk 0:02:40]} 9. Nc3 {[%clk 0:02:25]}  c5 {[%clk 0:02:11]} 10. dxc5 {[%clk 0:02:17]}  Qxf4 {[%clk 0:02:01]} 11. Qe2 {[%clk 0:02:17]}  Nc6 {[%clk 0:01:58]} 12. Nxc6 {[%clk 0:02:11]}  bxc6 {[%clk 0:01:58]} 13. a3 {[%clk 0:02:06]}  e5 {[%clk 0:01:52]} 14. g3 {[%clk 0:02:06]}  Qd4 {[%clk 0:01:51]} 15. O-O-O {[%clk 0:02:07]}  Qxc5 {[%clk 0:01:43]} 16. Qxe5 {[%clk 0:02:07]}  Bg4 {[%clk 0:01:33]} 17. Rde1 {[%clk 0:02:04]}  Rab8 {[%clk 0:01:27]} 18. Qf4 {[%clk 0:01:43]}  Be6 {[%clk 0:01:21]} 19. g4 {[%clk 0:01:35]}  Nd7 {[%clk 0:01:21]} 20. h5 {[%clk 0:01:34]}  Qb6 {[%clk 0:01:12]} 21. Na4 {[%clk 0:01:31]}  Qa5 {[%clk 0:01:11]} 22. h6 {[%clk 0:01:31]}  g6 {[%clk 0:00:54]} 23. Qd4 {[%clk 0:01:29]} 1-0


[Site "https://www.chess.com"]

[Event "Titled Tuesday Blitz July 18 Early 2023"]
[White "Svane, Frederik"]
[Black "Makkar, Rajat"]
[WhiteFideId "12923044"]
[BlackFideId "36016810"]
[WhiteElo "2959"]
[BlackElo "2505"]
[Result "1-0"]
[Round "1"]
[TimeControl "180+2"]
[Date "2023.07.18"]
[WhiteClock "0:00:10"]
[BlackClock "0:00:10"]
[Board "20"]

1. c4 {[%clk 0:02:59]}  c6 {[%clk 0:02:59]} 2. Nf3 {[%clk 0:02:57]}  Nf6 {[%clk 0:02:58]} 3. b3 {[%clk 0:02:57]}  d5 {[%clk 0:02:57]} 4. Bb2 {[%clk 0:02:58]}  e6 {[%clk 0:02:56]} 5. g3 {[%clk 0:02:57]}  Bd6 {[%clk 0:02:56]} 6. Bg2 {[%clk 0:02:57]}  O-O {[%clk 0:02:57]} 7. O-O {[%clk 0:02:57]}  a5 {[%clk 0:02:52]} 8. Nc3 {[%clk 0:02:56]}  Nbd7 {[%clk 0:02:43]} 9. d4 {[%clk 0:02:52]}  Ne4 {[%clk 0:02:29]} 10. Nd2 {[%clk 0:02:43]}  f5 {[%clk 0:02:17]} 11. Ndxe4 {[%clk 0:02:42]}  fxe4 {[%clk 0:02:16]} 12. f3 {[%clk 0:02:42]}  exf3 {[%clk 0:02:09]} 13. exf3 {[%clk 0:02:43]}  a4 {[%clk 0:02:02]} 14. Nxa4 {[%clk 0:02:41]}  dxc4 {[%clk 0:01:50]} 15. bxc4 {[%clk 0:02:42]}  e5 {[%clk 0:01:51]} 16. c5 {[%clk 0:02:35]}  Bc7 {[%clk 0:01:47]} 17. d5 {[%clk 0:02:34]}  Nxc5 {[%clk 0:01:27]} 18. Nxc5 {[%clk 0:02:30]}  Bb6 {[%clk 0:01:27]} 19. dxc6 {[%clk 0:02:23]}  Bxc5+ {[%clk 0:01:25]} 20. Kh1 {[%clk 0:02:24]}  bxc6 {[%clk 0:01:06]} 21. Bxe5 {[%clk 0:02:18]}  Be6 {[%clk 0:01:07]} 22. Qc2 {[%clk 0:02:13]}  Qa5 {[%clk 0:00:56]} 23. f4 {[%clk 0:02:11]}  Bd5 {[%clk 0:00:54]} 24. Bxd5+ {[%clk 0:02:07]}  cxd5 {[%clk 0:00:55]} 25. Rfd1 {[%clk 0:02:07]}  Rfd8 {[%clk 0:00:54]} 26. a4 {[%clk 0:02:04]}  d4 {[%clk 0:00:47]} 27. Qc4+ {[%clk 0:01:54]}  Kh8 {[%clk 0:00:46]} 28. Bxd4 {[%clk 0:01:51]}  Bxd4 {[%clk 0:00:45]} 29. Rxd4 {[%clk 0:01:52]}  Rxd4 {[%clk 0:00:45]} 30. Qxd4 {[%clk 0:01:53]}  Rd8 {[%clk 0:00:45]} 31. Qe4 {[%clk 0:01:51]}  h6 {[%clk 0:00:42]} 32. Ra2 {[%clk 0:01:44]}  Rd1+ {[%clk 0:00:38]} 33. Kg2 {[%clk 0:01:44]}  Re1 {[%clk 0:00:38]} 34. Qc6 {[%clk 0:01:36]}  Qa7 {[%clk 0:00:29]} 35. Rc2 {[%clk 0:01:15]}  Rg1+ {[%clk 0:00:23]} 36. Kh3 {[%clk 0:01:14]}  Qf7 {[%clk 0:00:24]} 37. Qa8+ {[%clk 0:01:08]}  Kh7 {[%clk 0:00:24]} 38. Qe4+ {[%clk 0:01:08]}  g6 {[%clk 0:00:25]} 39. Rc6 {[%clk 0:00:50]}  Ra1 {[%clk 0:00:18]} 40. Rb6 {[%clk 0:00:10]}  Qd7+ {[%clk 0:00:15]} 41. f5 {[%clk 0:00:06]}  Qxf5+ {[%clk 0:00:13]} 42. Qxf5 {[%clk 0:00:06]}  gxf5 {[%clk 0:00:14]} 43. Ra6 {[%clk 0:00:07]}  Rf1 {[%clk 0:00:12]} 44. Kg2 {[%clk 0:00:07]}  Rb1 {[%clk 0:00:11]} 45. Kf3 {[%clk 0:00:07]}  Rb4 {[%clk 0:00:12]} 46. a5 {[%clk 0:00:07]}  Kg7 {[%clk 0:00:12]} 47. Ra8 {[%clk 0:00:07]}  Kg6 {[%clk 0:00:12]} 48. a6 {[%clk 0:00:07]}  Ra4 {[%clk 0:00:13]} 49. a7 {[%clk 0:00:08]}  Kg7 {[%clk 0:00:14]} 50. Ke3 {[%clk 0:00:07]}  Kh7 {[%clk 0:00:13]} 51. Kd3 {[%clk 0:00:08]}  h5 {[%clk 0:00:12]} 52. Kc3 {[%clk 0:00:08]}  Kg7 {[%clk 0:00:12]} 53. Kb3 {[%clk 0:00:08]}  Ra1 {[%clk 0:00:12]} 54. h4 {[%clk 0:00:08]}  Ra6 {[%clk 0:00:12]} 55. Kc4 {[%clk 0:00:08]}  Ra1 {[%clk 0:00:12]} 56. Kd5 {[%clk 0:00:09]}  Ra5+ {[%clk 0:00:13]} 57. Ke6 {[%clk 0:00:09]}  Kh7 {[%clk 0:00:13]} 58. Kf6 {[%clk 0:00:09]}  f4 {[%clk 0:00:13]} 59. gxf4 {[%clk 0:00:09]}  Ra6+ {[%clk 0:00:14]} 60. Kg5 {[%clk 0:00:09]}  Ra5+ {[%clk 0:00:15]} 61. f5 {[%clk 0:00:09]}  Kg7 {[%clk 0:00:15]} 62. Kf4 {[%clk 0:00:09]}  Ra4+ {[%clk 0:00:15]} 63. Ke3 {[%clk 0:00:10]}  Kh7 {[%clk 0:00:14]} 64. f6 {[%clk 0:00:10]}  Ra6 {[%clk 0:00:10]} 65. f7 {[%clk 0:00:10]} 1-0


[Site "https://www.chess.com"]

[Event "Titled Tuesday Blitz July 18 Early 2023"]
[White "Ljukin, Sergei"]
[Black "He, Anthony"]
[WhiteFideId "14102200"]
[BlackFideId "2088215"]
[WhiteElo "2498"]
[BlackElo "2944"]
[Result "0-1"]
[Round "1"]
[TimeControl "180+2"]
[Date "2023.07.18"]
[WhiteClock "0:00:03"]
[BlackClock "0:01:39"]
[Board "23"]

1. e4 {[%clk 0:02:58]}  e5 {[%clk 0:02:59]} 2. Nf3 {[%clk 0:02:58]}  Nc6 {[%clk 0:02:59]} 3. Bb5 {[%clk 0:02:58]}  a6 {[%clk 0:02:59]} 4. Ba4 {[%clk 0:02:58]}  Nf6 {[%clk 0:02:59]} 5. Qe2 {[%clk 0:02:58]}  b5 {[%clk 0:02:58]} 6. Bb3 {[%clk 0:02:58]}  Be7 {[%clk 0:02:58]} 7. c3 {[%clk 0:02:58]}  d6 {[%clk 0:02:58]} 8. O-O {[%clk 0:02:57]}  O-O {[%clk 0:02:58]} 9. d4 {[%clk 0:02:58]}  exd4 {[%clk 0:02:56]} 10. cxd4 {[%clk 0:02:57]}  Bg4 {[%clk 0:02:57]} 11. Rd1 {[%clk 0:02:57]}  Re8 {[%clk 0:02:45]} 12. Nc3 {[%clk 0:02:50]}  Bf8 {[%clk 0:02:42]} 13. Bg5 {[%clk 0:02:49]}  h6 {[%clk 0:02:41]} 14. Bxf6 {[%clk 0:02:48]}  Qxf6 {[%clk 0:02:41]} 15. Nd5 {[%clk 0:02:19]}  Qd8 {[%clk 0:02:36]} 16. Rac1 {[%clk 0:02:06]}  Bd7 {[%clk 0:02:36]} 17. a3 {[%clk 0:01:44]}  Rc8 {[%clk 0:02:36]} 18. Qd3 {[%clk 0:01:39]}  Na5 {[%clk 0:02:25]} 19. Ba2 {[%clk 0:01:34]}  c6 {[%clk 0:02:25]} 20. Ne3 {[%clk 0:01:26]}  Nb7 {[%clk 0:02:12]} 21. b4 {[%clk 0:01:25]}  a5 {[%clk 0:02:11]} 22. bxa5 {[%clk 0:00:57]}  Nxa5 {[%clk 0:02:09]} 23. e5 {[%clk 0:00:55]}  d5 {[%clk 0:02:08]} 24. Bb1 {[%clk 0:00:54]}  g6 {[%clk 0:02:08]} 25. Nd2 {[%clk 0:00:50]}  Nc4 {[%clk 0:02:08]} 26. f4 {[%clk 0:00:46]}  Ra8 {[%clk 0:02:01]} 27. Ndxc4 {[%clk 0:00:45]}  bxc4 {[%clk 0:02:02]} 28. Qe2 {[%clk 0:00:37]}  Rxa3 {[%clk 0:02:02]} 29. f5 {[%clk 0:00:37]}  Qg5 {[%clk 0:02:02]} 30. Re1 {[%clk 0:00:33]}  gxf5 {[%clk 0:02:02]} 31. Nc2 {[%clk 0:00:28]}  Rb3 {[%clk 0:01:59]} 32. Rf1 {[%clk 0:00:21]}  Reb8 {[%clk 0:01:51]} 33. Na1 {[%clk 0:00:13]}  Rb2 {[%clk 0:01:48]} 34. Qf3 {[%clk 0:00:11]}  f4 {[%clk 0:01:48]} 35. Nc2 {[%clk 0:00:08]}  R8b3 {[%clk 0:01:43]} 36. Qf2 {[%clk 0:00:07]}  f3 {[%clk 0:01:42]} 37. g3 {[%clk 0:00:03]}  h5 {[%clk 0:01:39]} 0-1


[Site "https://www.chess.com"]

[Event "Titled Tuesday Blitz July 18 Early 2023"]
[White "Ibarra Jerez, Jose Carlos"]
[Black "MateoReyes"]
[WhiteFideId "2226332"]
[WhiteElo "2942"]
[BlackElo "2496"]
[Result "1-0"]
[Round "1"]
[TimeControl "180+2"]
[Date "2023.07.18"]
[WhiteClock "0:01:53"]
[BlackClock "0:01:53"]
[Board "24"]

1. e4 {[%clk 0:02:57]}  c5 {[%clk 0:02:59]} 2. Nf3 {[%clk 0:02:57]}  d6 {[%clk 0:02:59]} 3. c3 {[%clk 0:02:57]}  Nf6 {[%clk 0:02:58]} 4. h3 {[%clk 0:02:54]}  e5 {[%clk 0:02:53]} 5. d4 {[%clk 0:02:49]}  cxd4 {[%clk 0:02:45]} 6. cxd4 {[%clk 0:02:49]}  exd4 {[%clk 0:02:45]} 7. Qxd4 {[%clk 0:02:40]}  Be7 {[%clk 0:02:44]} 8. Nc3 {[%clk 0:02:39]}  O-O {[%clk 0:02:43]} 9. Bc4 {[%clk 0:02:38]}  Nc6 {[%clk 0:02:43]} 10. Qd1 {[%clk 0:02:38]}  Ne5 {[%clk 0:02:42]} 11. Bb3 {[%clk 0:02:36]}  Nxf3+ {[%clk 0:02:35]} 12. Qxf3 {[%clk 0:02:35]}  Be6 {[%clk 0:02:35]} 13. O-O {[%clk 0:02:27]}  Bxb3 {[%clk 0:02:33]} 14. axb3 {[%clk 0:02:28]}  Qb6 {[%clk 0:02:32]} 15. Bg5 {[%clk 0:02:23]}  Qxb3 {[%clk 0:02:26]} 16. Nd5 {[%clk 0:02:07]}  Qxf3 {[%clk 0:02:20]} 17. Nxe7+ {[%clk 0:02:06]}  Kh8 {[%clk 0:02:19]} 18. gxf3 {[%clk 0:02:04]}  Nd7 {[%clk 0:02:16]} 19. Rfd1 {[%clk 0:02:01]}  Ne5 {[%clk 0:02:15]} 20. Kg2 {[%clk 0:02:00]}  f6 {[%clk 0:02:11]} 21. Be3 {[%clk 0:01:54]}  Nc4 {[%clk 0:02:05]} 22. b3 {[%clk 0:01:52]}  Nxe3+ {[%clk 0:02:00]} 23. fxe3 {[%clk 0:01:53]}  Rfe8 {[%clk 0:01:53]} 24. Nf5 {[%clk 0:01:53]} 1-0


[Site "https://www.chess.com"]

[Event "Titled Tuesday Blitz July 18 Early 2023"]
[White "Mostbauer, Florian"]
[Black "Vokhidov, Shamsiddin"]
[WhiteFideId "1626671"]
[BlackFideId "14204223"]
[WhiteElo "2496"]
[BlackElo "2936"]
[Result "0-1"]
[Round "1"]
[TimeControl "180+2"]
[Date "2023.07.18"]
[WhiteClock "0:02:16"]
[BlackClock "0:02:38"]
[Board "25"]

1. d4 {[%clk 0:02:57]}  Nf6 {[%clk 0:03:00]} 2. Nf3 {[%clk 0:02:56]}  d5 {[%clk 0:03:01]} 3. Bf4 {[%clk 0:02:55]}  c5 {[%clk 0:03:01]} 4. e3 {[%clk 0:02:54]}  Nc6 {[%clk 0:03:01]} 5. Nbd2 {[%clk 0:02:52]}  Nh5 {[%clk 0:03:01]} 6. Be5 {[%clk 0:02:50]}  e6 {[%clk 0:03:01]} 7. c3 {[%clk 0:02:49]}  f6 {[%clk 0:02:56]} 8. Bg3 {[%clk 0:02:40]}  cxd4 {[%clk 0:02:56]} 9. exd4 {[%clk 0:02:39]}  g6 {[%clk 0:02:56]} 10. c4 {[%clk 0:02:36]}  Bh6 {[%clk 0:02:53]} 11. cxd5 {[%clk 0:02:30]}  exd5 {[%clk 0:02:51]} 12. Qe2+ {[%clk 0:02:26]}  Kf7 {[%clk 0:02:50]} 13. O-O-O {[%clk 0:02:26]}  Bf5 {[%clk 0:02:40]} 14. Nh4 {[%clk 0:02:16]}  Nxd4 {[%clk 0:02:38]} 0-1


[Site "https://www.chess.com"]

[Event "Titled Tuesday Blitz July 18 Early 2023"]
[White "kuanysh1981"]
[Black "Tasdogen, Dincer"]
[BlackFideId "6367097"]
[WhiteElo "2494"]
[BlackElo "2928"]
[Result "0-1"]
[Round "1"]
[TimeControl "180+2"]
[Date "2023.07.18"]
[WhiteClock "0:01:54"]
[BlackClock "0:02:02"]
[Board "27"]

1. d4 {[%clk 0:03:00]}  g6 {[%clk 0:03:00]} 2. Nf3 {[%clk 0:03:00]}  Bg7 {[%clk 0:03:01]} 3. e4 {[%clk 0:03:01]}  c6 {[%clk 0:03:01]} 4. c4 {[%clk 0:02:59]}  d5 {[%clk 0:03:02]} 5. cxd5 {[%clk 0:02:59]}  cxd5 {[%clk 0:03:03]} 6. e5 {[%clk 0:02:59]}  Nc6 {[%clk 0:03:03]} 7. Nc3 {[%clk 0:02:59]}  Bg4 {[%clk 0:03:03]} 8. Be3 {[%clk 0:03:00]}  Nh6 {[%clk 0:03:04]} 9. Bb5 {[%clk 0:02:57]}  O-O {[%clk 0:03:04]} 10. Bxc6 {[%clk 0:02:57]}  bxc6 {[%clk 0:03:04]} 11. O-O {[%clk 0:02:57]}  Nf5 {[%clk 0:03:05]} 12. Rc1 {[%clk 0:02:57]}  e6 {[%clk 0:03:05]} 13. Na4 {[%clk 0:02:56]}  Rc8 {[%clk 0:03:02]} 14. h3 {[%clk 0:02:55]}  Bxf3 {[%clk 0:03:02]} 15. Qxf3 {[%clk 0:02:56]}  Qh4 {[%clk 0:02:57]} 16. Rfd1 {[%clk 0:02:55]}  f6 {[%clk 0:02:57]} 17. exf6 {[%clk 0:02:52]}  Bxf6 {[%clk 0:02:58]} 18. Qg4 {[%clk 0:02:50]}  Nxe3 {[%clk 0:02:52]} 19. fxe3 {[%clk 0:02:49]}  Qxg4 {[%clk 0:02:45]} 20. hxg4 {[%clk 0:02:49]}  e5 {[%clk 0:02:45]} 21. Nc5 {[%clk 0:02:40]}  Bg5 {[%clk 0:02:45]} 22. Rc3 {[%clk 0:02:38]}  Rce8 {[%clk 0:02:45]} 23. Nd7 {[%clk 0:02:35]}  exd4 {[%clk 0:02:45]} 24. exd4 {[%clk 0:02:36]}  Rf4 {[%clk 0:02:33]} 25. Ne5 {[%clk 0:02:34]}  c5 {[%clk 0:02:24]} 26. Rxc5 {[%clk 0:02:34]}  Rxd4 {[%clk 0:02:25]} 27. Nd3 {[%clk 0:02:20]}  Be3+ {[%clk 0:02:24]} 28. Kh2 {[%clk 0:02:19]}  Rxd3 {[%clk 0:02:25]} 29. Rxd3 {[%clk 0:02:18]}  Bxc5 {[%clk 0:02:26]} 30. Rxd5 {[%clk 0:02:19]}  Bb6 {[%clk 0:02:26]} 31. a4 {[%clk 0:02:15]}  Re4 {[%clk 0:02:23]} 32. a5 {[%clk 0:02:15]}  Bc7+ {[%clk 0:02:24]} 33. Kh3 {[%clk 0:02:15]}  Re3+ {[%clk 0:02:24]} 34. Kh4 {[%clk 0:02:15]}  h6 {[%clk 0:02:12]} 35. b4 {[%clk 0:02:04]}  Bg3+ {[%clk 0:02:11]} 36. Kh3 {[%clk 0:02:03]}  Bf4+ {[%clk 0:02:12]} 37. g3 {[%clk 0:02:02]}  Rxg3+ {[%clk 0:02:12]} 38. Kh4 {[%clk 0:02:02]}  g5+ {[%clk 0:02:01]} 39. Kh5 {[%clk 0:02:02]}  Kf7 {[%clk 0:02:02]} 40. Rd7+ {[%clk 0:01:54]}  Kf6 {[%clk 0:02:02]} 0-1


[Site "https://www.chess.com"]

[Event "Titled Tuesday Blitz July 18 Early 2023"]
[White "Taboas Rodriguez, Daniel"]
[Black "Gholami Orimi, Mahdi"]
[WhiteFideId "2208466"]
[BlackFideId "12558486"]
[WhiteElo "2489"]
[BlackElo "2921"]
[Result "0-1"]
[Round "1"]
[TimeControl "180+2"]
[Date "2023.07.18"]
[WhiteClock "0:00:46"]
[BlackClock "0:00:53"]
[Board "29"]

1. d4 {[%clk 0:03:00]}  Nf6 {[%clk 0:02:55]} 2. Nf3 {[%clk 0:03:00]}  e6 {[%clk 0:02:50]} 3. c4 {[%clk 0:03:01]}  b6 {[%clk 0:02:45]} 4. Nc3 {[%clk 0:03:00]}  Bb4 {[%clk 0:02:41]} 5. Qc2 {[%clk 0:03:00]}  Bb7 {[%clk 0:02:29]} 6. a3 {[%clk 0:03:01]}  Bxc3+ {[%clk 0:02:29]} 7. Qxc3 {[%clk 0:03:02]}  Ne4 {[%clk 0:02:29]} 8. Qc2 {[%clk 0:03:02]}  O-O {[%clk 0:02:29]} 9. g3 {[%clk 0:03:02]}  f5 {[%clk 0:02:28]} 10. Bg2 {[%clk 0:03:02]}  Nf6 {[%clk 0:02:20]} 11. O-O {[%clk 0:03:02]}  Be4 {[%clk 0:02:20]} 12. Qc3 {[%clk 0:03:02]}  Qe8 {[%clk 0:02:17]} 13. b4 {[%clk 0:03:02]}  d6 {[%clk 0:02:18]} 14. Bb2 {[%clk 0:03:02]}  Nbd7 {[%clk 0:02:18]} 15. Rfd1 {[%clk 0:02:49]}  Qh5 {[%clk 0:02:06]} 16. Bf1 {[%clk 0:02:46]}  Rae8 {[%clk 0:02:02]} 17. Nd2 {[%clk 0:02:44]}  Bb7 {[%clk 0:02:02]} 18. e3 {[%clk 0:02:27]}  e5 {[%clk 0:01:57]} 19. d5 {[%clk 0:02:20]}  f4 {[%clk 0:01:57]} 20. exf4 {[%clk 0:02:08]}  exf4 {[%clk 0:01:58]} 21. Bg2 {[%clk 0:01:47]}  Ne5 {[%clk 0:01:58]} 22. Re1 {[%clk 0:01:39]}  Bc8 {[%clk 0:01:53]} 23. Ne4 {[%clk 0:01:32]}  f3 {[%clk 0:01:45]} 24. Bh1 {[%clk 0:01:21]}  g5 {[%clk 0:01:16]} 25. Qe3 {[%clk 0:00:58]}  Nxe4 {[%clk 0:01:05]} 26. Qxe4 {[%clk 0:00:59]}  Ng4 {[%clk 0:01:03]} 27. Qxe8 {[%clk 0:00:47]}  Qxh2+ {[%clk 0:00:52]} 28. Kf1 {[%clk 0:00:46]}  Qxf2# {[%clk 0:00:53]} 0-1


[Site "https://www.chess.com"]

[Event "Titled Tuesday Blitz July 18 Early 2023"]
[White "Mmukka"]
[Black "Molina, Roberto Junio Brito"]
[BlackFideId "2109450"]
[WhiteElo "2484"]
[BlackElo "2915"]
[Result "1-0"]
[Round "1"]
[TimeControl "180+2"]
[Date "2023.07.18"]
[WhiteClock "0:00:25"]
[BlackClock "0:00:29"]
[Board "31"]

1. e4 {[%clk 0:02:59]}  c6 {[%clk 0:02:59]} 2. d4 {[%clk 0:02:59]}  d5 {[%clk 0:03:00]} 3. exd5 {[%clk 0:02:59]}  cxd5 {[%clk 0:03:00]} 4. Bd3 {[%clk 0:03:00]}  Nc6 {[%clk 0:03:00]} 5. c3 {[%clk 0:03:00]}  g6 {[%clk 0:03:00]} 6. Bf4 {[%clk 0:02:58]}  Bh6 {[%clk 0:02:56]} 7. Bg3 {[%clk 0:02:52]}  Bf5 {[%clk 0:02:54]} 8. Be2 {[%clk 0:02:52]}  Nf6 {[%clk 0:02:51]} 9. Nf3 {[%clk 0:02:47]}  O-O {[%clk 0:02:48]} 10. O-O {[%clk 0:02:46]}  Ne4 {[%clk 0:02:46]} 11. Re1 {[%clk 0:02:43]}  Nxg3 {[%clk 0:02:45]} 12. hxg3 {[%clk 0:02:42]}  Qd6 {[%clk 0:02:34]} 13. Bf1 {[%clk 0:02:40]}  e6 {[%clk 0:02:30]} 14. Nbd2 {[%clk 0:02:39]}  Bg4 {[%clk 0:02:29]} 15. Qb3 {[%clk 0:02:28]}  Bxf3 {[%clk 0:02:18]} 16. Nxf3 {[%clk 0:02:25]}  Rab8 {[%clk 0:02:16]} 17. Ne5 {[%clk 0:02:20]}  Nxe5 {[%clk 0:02:15]} 18. Rxe5 {[%clk 0:02:18]}  b5 {[%clk 0:02:09]} 19. Rd1 {[%clk 0:02:03]}  Bg7 {[%clk 0:02:02]} 20. Ree1 {[%clk 0:01:55]}  Rfd8 {[%clk 0:01:44]} 21. Be2 {[%clk 0:01:36]}  b4 {[%clk 0:01:43]} 22. c4 {[%clk 0:01:32]}  dxc4 {[%clk 0:01:43]} 23. Bxc4 {[%clk 0:01:31]}  Bxd4 {[%clk 0:01:03]} 24. Bxe6 {[%clk 0:00:55]}  fxe6 {[%clk 0:01:03]} 25. Rxe6 {[%clk 0:00:54]}  Bxf2+ {[%clk 0:00:55]} 26. Kxf2 {[%clk 0:00:50]}  Qxd1 {[%clk 0:00:38]} 27. Re8+ {[%clk 0:00:44]}  Kg7 {[%clk 0:00:38]} 28. Qg8+ {[%clk 0:00:26]}  Kh6 {[%clk 0:00:38]} 29. Qf8+ {[%clk 0:00:26]}  Kh5 {[%clk 0:00:38]} 30. Re5+ {[%clk 0:00:26]}  g5 {[%clk 0:00:38]} 31. Qf7+ {[%clk 0:00:25]}  Kh6 {[%clk 0:00:29]} 32. Qf6+ {[%clk 0:00:25]} 1-0


[Site "https://www.chess.com"]

[Event "Titled Tuesday Blitz July 18 Early 2023"]
[White "Demidov, Mikhail"]
[Black "Luo, Terry"]
[WhiteFideId "4197143"]
[BlackFideId "30931045"]
[WhiteElo "2915"]
[BlackElo "2482"]
[Result "1-0"]
[Round "1"]
[TimeControl "180+2"]
[Date "2023.07.18"]
[WhiteClock "0:00:22"]
[BlackClock "0:00:47"]
[Board "32"]

1. Nf3 {[%clk 0:02:57]}  Nf6 {[%clk 0:03:00]} 2. g3 {[%clk 0:02:57]}  g6 {[%clk 0:03:01]} 3. b3 {[%clk 0:02:57]}  Bg7 {[%clk 0:03:01]} 4. Bb2 {[%clk 0:02:58]}  d6 {[%clk 0:03:00]} 5. d4 {[%clk 0:02:58]}  O-O {[%clk 0:02:59]} 6. Bg2 {[%clk 0:02:58]}  b5 {[%clk 0:03:00]} 7. O-O {[%clk 0:02:57]}  Bb7 {[%clk 0:03:00]} 8. Qd3 {[%clk 0:02:56]}  a6 {[%clk 0:02:57]} 9. Nbd2 {[%clk 0:02:56]}  Nbd7 {[%clk 0:02:58]} 10. e4 {[%clk 0:02:55]}  c5 {[%clk 0:02:54]} 11. e5 {[%clk 0:02:50]}  Nd5 {[%clk 0:02:54]} 12. a3 {[%clk 0:02:41]}  dxe5 {[%clk 0:02:47]} 13. dxe5 {[%clk 0:02:40]}  Qc7 {[%clk 0:02:47]} 14. Rfe1 {[%clk 0:02:39]}  Rfd8 {[%clk 0:02:46]} 15. Rab1 {[%clk 0:02:27]}  Nf8 {[%clk 0:02:45]} 16. Qe2 {[%clk 0:02:22]}  Ne6 {[%clk 0:02:43]} 17. h4 {[%clk 0:02:15]}  Nb6 {[%clk 0:02:38]} 18. Ng5 {[%clk 0:02:03]}  Bxg2 {[%clk 0:02:37]} 19. Nxe6 {[%clk 0:01:59]}  fxe6 {[%clk 0:02:37]} 20. Kxg2 {[%clk 0:02:00]}  Rd5 {[%clk 0:02:20]} 21. c4 {[%clk 0:01:58]}  bxc4 {[%clk 0:02:18]} 22. bxc4 {[%clk 0:01:59]}  Rd7 {[%clk 0:02:18]} 23. Nf3 {[%clk 0:01:43]}  Rad8 {[%clk 0:02:13]} 24. Ba1 {[%clk 0:01:43]}  Bh6 {[%clk 0:02:11]} 25. Rb3 {[%clk 0:01:37]}  Qc6 {[%clk 0:02:02]} 26. Qe4 {[%clk 0:01:36]}  Qxe4 {[%clk 0:01:41]} 27. Rxe4 {[%clk 0:01:36]}  Na4 {[%clk 0:01:42]} 28. Rb1 {[%clk 0:01:22]}  Rd1 {[%clk 0:01:33]} 29. Re1 {[%clk 0:01:22]}  R1d3 {[%clk 0:01:33]} 30. Rb7 {[%clk 0:01:08]}  Kf7 {[%clk 0:01:22]} 31. Bb2 {[%clk 0:01:08]}  R8d7 {[%clk 0:01:15]} 32. Rb8 {[%clk 0:00:48]}  Rd8 {[%clk 0:01:15]} 33. Rxd8 {[%clk 0:00:47]}  Rxd8 {[%clk 0:01:16]} 34. Bc1 {[%clk 0:00:47]}  Bxc1 {[%clk 0:01:15]} 35. Rxc1 {[%clk 0:00:48]}  Rd3 {[%clk 0:01:16]} 36. Ng5+ {[%clk 0:00:45]}  Ke8 {[%clk 0:01:16]} 37. Rb1 {[%clk 0:00:41]}  Rxa3 {[%clk 0:01:10]} 38. Rb8+ {[%clk 0:00:39]}  Kd7 {[%clk 0:01:11]} 39. Rb7+ {[%clk 0:00:39]}  Kc6 {[%clk 0:01:09]} 40. Rxe7 {[%clk 0:00:39]}  Rc3 {[%clk 0:01:05]} 41. Rxe6+ {[%clk 0:00:39]}  Kb7 {[%clk 0:01:06]} 42. Ne4 {[%clk 0:00:38]}  Rc2 {[%clk 0:01:02]} 43. Re8 {[%clk 0:00:32]}  Kc6 {[%clk 0:01:01]} 44. e6 {[%clk 0:00:29]}  Rxc4 {[%clk 0:01:01]} 45. Rc8+ {[%clk 0:00:29]}  Kd5 {[%clk 0:01:00]} 46. Ng5 {[%clk 0:00:26]}  Kd6 {[%clk 0:00:56]} 47. Rd8+ {[%clk 0:00:22]}  Ke7 {[%clk 0:00:55]} 48. Rd7+ {[%clk 0:00:22]}  Ke8 {[%clk 0:00:47]} 49. Nxh7 {[%clk 0:00:22]} 1-0


[Site "https://www.chess.com"]

[Event "Titled Tuesday Blitz July 18 Early 2023"]
[White "Zhigalko, Sergei"]
[Black "Liu, Casper"]
[WhiteFideId "13502956"]
[BlackFideId "1454153"]
[WhiteElo "2882"]
[BlackElo "2473"]
[Result "1-0"]
[Round "1"]
[TimeControl "180+2"]
[Date "2023.07.18"]
[WhiteClock "0:01:41"]
[BlackClock "0:00:43"]
[Board "38"]

1. e4 {[%clk 0:03:00]}  c5 {[%clk 0:02:59]} 2. Nf3 {[%clk 0:03:01]}  d6 {[%clk 0:03:00]} 3. d4 {[%clk 0:03:00]}  cxd4 {[%clk 0:03:01]} 4. Qxd4 {[%clk 0:03:01]}  Nf6 {[%clk 0:03:02]} 5. Nc3 {[%clk 0:03:01]}  g6 {[%clk 0:03:02]} 6. e5 {[%clk 0:03:00]}  dxe5 {[%clk 0:03:02]} 7. Qxd8+ {[%clk 0:03:00]}  Kxd8 {[%clk 0:03:03]} 8. Nxe5 {[%clk 0:03:00]}  Be6 {[%clk 0:03:03]} 9. Bf4 {[%clk 0:02:58]}  Nbd7 {[%clk 0:03:02]} 10. O-O-O {[%clk 0:02:58]}  Bg7 {[%clk 0:03:00]} 11. Bb5 {[%clk 0:02:56]}  a6 {[%clk 0:02:59]} 12. Bxd7 {[%clk 0:02:52]}  Nxd7 {[%clk 0:03:00]} 13. Nxd7 {[%clk 0:02:31]}  Bxd7 {[%clk 0:03:01]} 14. Nd5 {[%clk 0:02:32]}  b5 {[%clk 0:02:41]} 15. Rd2 {[%clk 0:01:51]}  Ra7 {[%clk 0:00:56]} 16. Rhd1 {[%clk 0:01:49]}  e5 {[%clk 0:00:47]} 17. Be3 {[%clk 0:01:41]}  Rb7 {[%clk 0:00:43]} 18. Nb6 {[%clk 0:01:41]} 1-0


[Site "https://www.chess.com"]